fUSD/lending_fUSD_20240412
["ID","MTS","AMOUNT","RATE_DAILY","PERIOD"]
[322340283,1712956539709,-500.0,0.00046575,31]
[322340284,1712956539732,-1048.99,0.00046575,31]
[322340285,1712956539759,-807.07,0.00046575,31]
[322340286,1712956539783,-500.0,0.00046575,31]
[322340287,1712956539808,-500.0,0.00046575,31]
[322340288,1712956539832,-500.0,0.00046575,31]
[322340289,1712956539854,-1348.38,0.00046575,31]
[322340290,1712956539878,-500.0,0.00046575,31]
[322340291,1712956539902,-505.7872947,0.00046575,31]
[322340292,1712956539926,-500.0,0.00046575,31]
[322340293,1712956539949,-500.0,0.00046575,31]
[322340294,1712956539972,-500.0,0.00046575,31]
[322340295,1712956539995,-500.0,0.00046575,31]
[322340296,1712956540016,-500.0,0.00046575,31]
[322340297,1712956540040,-500.0,0.00046575,31]
[322340298,1712956540062,-905.59,0.00046575,31]
[322340299,1712956540086,-3905.62,0.00046575,31]
[322340300,1712956540109,-500.0,0.00046575,31]
[322340301,1712956540131,-500.0,0.00046575,31]
[322340302,1712956540160,-500.0,0.00046575,31]
[322340303,1712956540183,-500.0,0.00046575,31]
[322340304,1712956540206,-500.0,0.00046575,31]
[322340305,1712956540229,-500.0,0.00046575,31]
[322340306,1712956540251,-500.0,0.00046575,31]
[322340307,1712956540276,-1017.18,0.00046575,31]
[322340308,1712956540298,-583.0031707,0.00046575,31]
[322340309,1712956540320,-500.0,0.00046575,31]
[322340310,1712956540343,-500.0,0.00046575,31]
[322340311,1712956540365,-500.0,0.00046575,31]
[322340312,1712956540388,-1495.51,0.00046575,31]
[322340313,1712956540413,-500.0,0.00046575,31]
[322340314,1712956540435,-500.0,0.00046575,31]
[322340315,1712956540459,-500.0,0.00046575,31]
[322340316,1712956540482,-500.0,0.00046575,31]
[322340317,1712956540506,-987.63,0.00046575,31]
[322340318,1712956540530,-2186.21,0.00046575,31]
[322340319,1712956540553,-500.0,0.00046575,31]
[322340320,1712956540575,-500.0,0.00046575,31]
[322340321,1712956540598,-500.0,0.00046575,31]
[322340322,1712956540620,-500.0,0.00046575,31]
[322340323,1712956540643,-500.0,0.00046575,31]
[322340324,1712956540666,-500.0,0.00046575,31]
[322340325,1712956540690,-500.0,0.00046575,31]
[322340326,1712956540713,-500.0,0.00046575,31]
[322340327,1712956540883,-504.71839909,0.00046575,31]
[322340328,1712956540911,-500.0,0.00046575,31]
[322340329,1712956540934,-500.0,0.00046575,31]
[322340330,1712956540958,-500.0,0.00046575,31]
[322340331,1712956540981,-500.0,0.00046575,31]
[322340332,1712956541004,-1423.81,0.00046575,31]
[322340333,1712956541028,-500.0,0.00046575,31]
[322340334,1712956541051,-587.72331969,0.00046575,31]
[322340335,1712956541073,-500.0,0.00046575,31]
[322340336,1712956541096,-500.0,0.00046575,31]
[322340337,1712956541119,-500.0,0.00046575,31]
[322340338,1712956541141,-500.0,0.00046575,31]
[322340339,1712956541164,-500.0,0.00046575,31]
[322340340,1712956541186,-500.0,0.00046575,31]
[322340341,1712956541209,-500.0,0.00046575,31]
[322340342,1712956541232,-500.0,0.00046575,31]
[322340343,1712956541255,-1543.83,0.00046575,31]
[322340344,1712956541280,-16891.89,0.00046575,31]
[322340345,1712956541304,-500.0,0.00046575,31]
[322340346,1712956541329,-500.0,0.00046575,31]
[322340347,1712956541353,-1727.76,0.00046575,31]
[322340348,1712956541376,-538.41680969,0.00046575,31]
[322340349,1712956541399,-500.0,0.00046575,31]
[322340350,1712956541427,-500.0,0.00046575,31]
[322340351,1712956541452,-500.0,0.00046575,31]
[322340352,1712956541479,-500.0,0.00046575,31]
[322340353,1712956541503,-500.0,0.00046575,31]
[322340354,1712956541527,-500.0,0.00046575,31]
[322340355,1712956541548,-500.0,0.00046575,31]
[322340356,1712956541571,-500.0,0.00046575,31]
[322340357,1712956541594,-500.0,0.00046575,31]
[322340358,1712956541617,-1334.55,0.00046575,31]
[322340359,1712956541640,-500.0,0.00046575,31]
[322340360,1712956541662,-3445.8,0.00046575,31]
[322340361,1712956541685,-500.0,0.00046575,31]
[322340362,1712956541710,-3743.4,0.00046575,31]
[322340363,1712956541732,-500.0,0.00046575,31]
[322340364,1712956541756,-500.0,0.00046575,31]
[322340365,1712956541780,-500.0,0.00046575,31]
[322340366,1712956541802,-500.0,0.00046575,31]
[322340367,1712956541825,-500.0,0.00046575,31]
[322340368,1712956541848,-500.0,0.00046575,31]
[322340369,1712956541871,-500.0,0.00046575,31]
[322340370,1712956541893,-500.0,0.00046575,31]
[322340371,1712956541917,-650.65,0.00046575,31]
[322340372,1712956541940,-500.0,0.00046575,31]
[322340373,1712956541963,-500.0,0.00046575,31]
[322340374,1712956541986,-500.0,0.00046575,31]
[322340375,1712956542010,-500.0,0.00046575,31]
[322340376,1712956542036,-500.0,0.00046575,31]
[322340377,1712956542059,-153.050741,0.00046607,30]
[322340378,1712956542082,-153.6742473,0.0004675,30]
[322340379,1712956542106,-153.67424732,0.0004676,30]
[322340380,1712956542129,-152.3820507,0.00046785,30]
[322340381,1712956542153,-500.0,0.00046849,31]
[322340382,1712956542176,-500.0,0.00046849,31]
[322340383,1712956542211,-500.0,0.00046849,31]
[322340384,1712956542237,-500.0,0.00046849,31]
[322340385,1712956542261,-500.0,0.00046849,31]
[322340386,1712956542287,-626.68625536,0.00046849,31]
[322340387,1712956542312,-500.0,0.00046849,31]
[322340388,1712956542337,-500.0,0.00046849,31]
[322340389,1712956542361,-500.0,0.00046849,31]
[322340390,1712956542387,-500.0,0.00046849,31]
[322340391,1712956542414,-497.62786806,0.00046849,31]
[322340392,1712956542438,-577.87,0.00046849,31]
[322340393,1712956542465,-500.0,0.00046849,31]
[322340394,1712956542491,-500.0,0.00046849,31]
[322340395,1712956542516,-500.0,0.00046849,31]
[322340396,1712956542543,-500.0,0.00046849,31]
[322340397,1712956542570,-1511.53,0.00046849,31]
[322340398,1712956542594,-500.0,0.00046849,31]
[322340399,1712956542620,-500.0,0.00046849,31]
[322340400,1712956542646,-500.0,0.00046849,31]
[322340401,1712956542672,-2105.21,0.00046849,31]
[322340402,1712956542698,-181.97,0.00046849,31]
[322340403,1712956542724,-500.0,0.00046849,31]
[322340404,1712956542750,-500.0,0.00046849,31]
[322340405,1712956542776,-500.0,0.00046849,31]
[322340406,1712956542802,-533.57,0.00046849,31]
[322340407,1712956542829,-500.0,0.00046849,31]
[322340408,1712956542854,-500.0,0.00046849,31]
[322340409,1712956542879,-500.0,0.00046849,31]
[322340410,1712956542905,-1575.29,0.00046849,31]
[322340411,1712956542931,-3096.99,0.00046849,31]
[322340412,1712956542957,-500.0,0.00046849,31]
[322340413,1712956542982,-500.0,0.00046849,31]
[322340414,1712956543012,-500.0,0.00046849,31]
[322340415,1712956543041,-500.0,0.00046849,31]
[322340416,1712956543067,-500.0,0.00046849,31]
[322340417,1712956543092,-500.0,0.00046849,31]
[322340418,1712956543117,-406.13210809,0.00046849,31]
[322340419,1712956543144,-500.0,0.00046849,31]
[322340420,1712956543170,-534.76585203,0.00046849,31]
[322340421,1712956543197,-632.18,0.00046849,31]
[322340422,1712956543225,-895.36,0.00046849,31]
[322340423,1712956543250,-554.76,0.00046849,31]
[322340424,1712956543280,-500.0,0.00046849,31]
[322340425,1712956543305,-500.0,0.00046849,31]
[322340426,1712956543330,-500.0,0.00046849,31]
[322340427,1712956543355,-941.44,0.00046849,31]
[322340428,1712956543381,-500.0,0.00046849,31]
[322340429,1712956543407,-500.0,0.00046849,31]
[322340430,1712956543434,-500.0,0.00046849,31]
[322340431,1712956543684,-1111.5,0.00046849,31]
[322340432,1712956543712,-774.82,0.00046849,31]
[322340433,1712956543740,-8132.3,0.00046849,31]
[322340434,1712956543766,-500.0,0.00046849,31]
[322340435,1712956543794,-500.0,0.00046849,31]
[322340436,1712956543819,-283.3,0.00046849,31]
[322340437,1712956543844,-500.0,0.00046849,31]
[322340438,1712956543867,-500.0,0.00046849,31]
[322340439,1712956543891,-750.39,0.00046849,31]
[322340440,1712956543915,-500.0,0.00046849,31]
[322340441,1712956543940,-500.0,0.00046849,31]
[322340442,1712956543964,-500.0,0.00046849,31]
[322340443,1712956543988,-1572.03,0.00046849,31]
[322340444,1712956544012,-500.0,0.00046849,31]
[322340445,1712956544037,-194.62,0.00046849,31]
[322340446,1712956544066,-3312.21,0.00046849,31]
[322340447,1712956544090,-500.0,0.00046849,31]
[322340448,1712956544115,-500.0,0.00046849,31]
[322340449,1712956544139,-500.0,0.00046849,31]
[322340450,1712956544162,-500.0,0.00046849,31]
[322340451,1712956544191,-971.73,0.00046849,31]
[322340452,1712956544215,-1402.91,0.00046849,31]
[322340453,1712956544241,-500.0,0.00046849,31]
[322340454,1712956544266,-533.79,0.00046849,31]
[322340455,1712956544293,-500.0,0.00046849,31]
[322340456,1712956544318,-500.0,0.00046849,31]
[322340457,1712956544342,-500.0,0.00046849,31]
[322340458,1712956544367,-500.0,0.00046849,31]
[322340459,1712956544392,-500.0,0.00046849,31]
[322340460,1712956544418,-500.0,0.00046849,31]
[322340461,1712956544442,-770.12,0.00046849,31]
[322340462,1712956544468,-546.83,0.00046849,31]
[322340463,1712956544494,-500.0,0.00046849,31]
[322340464,1712956544521,-500.0,0.00046849,31]
[322340465,1712956544549,-500.0,0.00046849,31]
[322340466,1712956544574,-500.0,0.00046849,31]
[322340467,1712956544598,-500.0,0.00046849,31]
[322340468,1712956544624,-500.0,0.00046849,31]
[322340469,1712956544649,-508.24,0.00046849,31]
[322340470,1712956544674,-500.0,0.00046849,31]
[322340471,1712956544698,-500.0,0.00046849,31]
[322340472,1712956544725,-6667.16,0.00046849,31]
[322340473,1712956544752,-500.0,0.00046849,31]
[322340474,1712956544779,-500.0,0.00046849,31]
[322340475,1712956544804,-500.0,0.00046849,31]
[322340476,1712956544830,-562.65,0.00046849,31]
[322340477,1712956544854,-500.0,0.00046849,31]
[322340478,1712956544877,-592.68,0.00046849,31]
[322340479,1712956544903,-2128.49,0.00046849,31]
[322340480,1712956544927,-576.79,0.00046849,31]
[322340481,1712956544954,-329.9,0.00046849,31]
[322340482,1712956544981,-2572.2,0.00046849,31]
[322340483,1712956545006,-500.0,0.00046849,31]
[322340484,1712956545035,-476.65,0.00046849,31]
[322340485,1712956545061,-500.0,0.00046849,31]
[322340486,1712956545086,-500.0,0.00046849,31]
[322340487,1712956545111,-500.0,0.00046849,31]
[322340488,1712956545136,-500.0,0.00046849,31]
[322340489,1712956545159,-500.0,0.00046849,31]
[322340490,1712956545183,-150.0,0.00046849,31]
[322340491,1712956545207,-500.0,0.00046849,31]
[322340492,1712956545232,-500.0,0.00046849,31]
[322340493,1712956545257,-500.0,0.00046849,31]
[322340494,1712956545283,-789.07,0.00046849,31]
[322340495,1712956545307,-500.0,0.00046849,31]
[322340496,1712956545332,-940.58,0.00046849,31]
[322340497,1712956545358,-500.0,0.00046849,31]
[322340498,1712956545382,-500.0,0.00046849,31]
[322340499,1712956545408,-1810.71,0.00046849,31]
[322340500,1712956545435,-500.0,0.00046849,31]
[322340501,1712956545460,-1488.79,0.00046849,31]
[322340502,1712956545485,-500.0,0.00046849,31]
[322340503,1712956545511,-500.0,0.00046849,31]
[322340504,1712956545535,-500.0,0.00046849,31]
[322340505,1712956545559,-500.0,0.00046849,31]
[322340506,1712956545584,-3983.01,0.00046849,31]
[322340507,1712956545609,-500.0,0.00046849,31]
[322340508,1712956545634,-500.0,0.00046849,31]
[322340509,1712956545658,-500.0,0.00046849,31]
[322340510,1712956545682,-627.13,0.00046849,31]
[322340511,1712956545707,-1220.51,0.00046849,31]
[322340512,1712956545736,-500.0,0.00046849,31]
[322340513,1712956545763,-500.0,0.00046849,31]
[322340514,1712956545788,-500.0,0.00046849,31]
[322340515,1712956545813,-500.0,0.00046849,31]
[322340516,1712956545838,-976.12,0.00046849,31]
[322340517,1712956545862,-500.0,0.00046849,31]
[322340518,1712956545888,-970.66,0.00046849,31]
[322340519,1712956545913,-1553.59,0.00046849,31]
[322340520,1712956545937,-500.0,0.00046849,31]
[322340521,1712956545960,-500.0,0.00046849,31]
[322340522,1712956545984,-2065.52,0.00046849,31]
[322340523,1712956546009,-500.0,0.00046849,31]
[322340524,1712956546034,-500.0,0.00046849,31]
[322340525,1712956546058,-500.0,0.00046849,31]
[322340526,1712956546083,-1215.24,0.00046849,31]
[322340527,1712956546118,-500.0,0.00046849,31]
[322340528,1712956546144,-1686.35,0.00046849,31]
[322340529,1712956546169,-3280.57,0.00046849,31]
[322340530,1712956546195,-500.0,0.00046849,31]
[322340531,1712956546220,-500.0,0.00046849,31]
[322340532,1712956546244,-667.3,0.00046849,31]
[322340533,1712956546268,-500.0,0.00046849,31]
[322340534,1712956546294,-601.21,0.00046849,31]
[322340535,1712956546520,-500.0,0.00046849,31]
[322340536,1712956546549,-500.0,0.00046849,31]
[322340537,1712956546576,-500.0,0.00046849,31]
[322340538,1712956546600,-846.97,0.00046849,31]
[322340539,1712956546624,-500.0,0.00046849,31]
[322340540,1712956546649,-500.0,0.00046849,31]
[322340541,1712956546674,-544.04,0.00046849,31]
[322340542,1712956546699,-500.0,0.00046849,31]
[322340543,1712956546723,-500.0,0.00046849,31]
[322340544,1712956546749,-500.0,0.00046849,31]
[322340545,1712956546773,-500.0,0.00046849,31]
[322340546,1712956546804,-500.0,0.00046849,31]
[322340547,1712956546828,-500.0,0.00046849,31]
[322340548,1712956546853,-1495.44,0.00046849,31]
[322340549,1712956546877,-500.0,0.00046849,31]
[322340550,1712956546901,-935.04,0.00046849,31]
[322340551,1712956546925,-808.45,0.00046849,31]
[322340552,1712956546950,-1846.15,0.00046849,31]
[322340553,1712956546973,-1507.31,0.00046849,31]
[322340554,1712956546997,-500.0,0.00046849,31]
[322340555,1712956547022,-1294.69,0.00046849,31]
[322340556,1712956547050,-500.0,0.00046849,31]
[322340557,1712956547073,-500.0,0.00046849,31]
[322340558,1712956547097,-2247.71,0.00046849,31]
[322340559,1712956547122,-500.0,0.00046849,31]
[322340560,1712956547145,-500.0,0.00046849,31]
[322340561,1712956547170,-896.47,0.00046849,31]
[322340562,1712956547197,-1472.35,0.00046849,31]
[322340563,1712956547223,-500.0,0.00046849,31]
[322340564,1712956547247,-580.22,0.00046849,31]
[322340565,1712956547272,-500.0,0.00046849,31]
[322340566,1712956547299,-2397.12,0.00046849,31]
[322340567,1712956547324,-500.0,0.00046849,31]
[322340568,1712956547348,-1322.27,0.00046849,31]
[322340569,1712956547376,-880.42,0.00046849,31]
[322340570,1712956547400,-500.0,0.00046849,31]
[322340571,1712956547425,-500.0,0.00046849,31]
[322340572,1712956547449,-543.71,0.00046849,31]
[322340573,1712956547479,-1600.11,0.00046849,31]
[322340574,1712956547507,-527.08,0.00046849,31]
[322340575,1712956547535,-500.0,0.00046849,31]
[322340576,1712956547559,-688.0,0.00046849,31]
[322340577,1712956547585,-500.0,0.00046849,31]
[322340578,1712956547609,-1007.86,0.00046849,31]
[322340579,1712956547632,-2299.87,0.00046849,31]
[322340580,1712956547657,-500.0,0.00046849,31]
[322340581,1712956547681,-500.0,0.00046849,31]
[322340582,1712956547705,-500.0,0.00046849,31]
[322340583,1712956547729,-3212.13,0.00046849,31]
[322340584,1712956547754,-500.0,0.00046849,31]
[322340585,1712956547778,-1236.5,0.00046849,31]
[322340586,1712956547802,-6534.43,0.00046849,31]
[322340587,1712956547825,-500.0,0.00046849,31]
[322340588,1712956547849,-196.95,0.00046849,31]
[322340589,1712956547873,-880.9,0.00046849,31]
[322340590,1712956547897,-522.9,0.00046849,31]
[322340591,1712956547920,-500.0,0.00046849,31]
[322340592,1712956547944,-1933.1,0.00046849,31]
[322340593,1712956547968,-500.0,0.00046849,31]
[322340594,1712956547991,-500.0,0.00046849,31]
[322340595,1712956548015,-500.0,0.00046849,31]
[322340596,1712956548040,-500.0,0.00046849,31]
[322340597,1712956548065,-500.0,0.00046849,31]
[322340598,1712956548089,-500.0,0.00046849,31]
[322340599,1712956548113,-1985.47,0.00046849,31]
[322340600,1712956548136,-500.0,0.00046849,31]
[322340601,1712956548162,-1845.09,0.00046849,31]
[322340602,1712956548185,-500.0,0.00046849,31]
[322340603,1712956548209,-1048.99,0.00046849,31]
[322340604,1712956548232,-807.07,0.00046849,31]
[322340605,1712956548257,-500.0,0.00046849,31]
[322340606,1712956548284,-500.0,0.00046849,31]
[322340607,1712956548308,-500.0,0.00046849,31]
[322340608,1712956548335,-1348.38,0.00046849,31]
[322340609,1712956548358,-500.0,0.00046849,31]
[322340610,1712956548382,-500.0,0.00046849,31]
[322340611,1712956548406,-500.0,0.00046849,31]
[322340612,1712956548433,-905.59,0.00046849,31]
[322340613,1712956548458,-3905.62,0.00046849,31]
[322340614,1712956548484,-500.0,0.00046849,31]
[322340615,1712956548510,-500.0,0.00046849,31]
[322340616,1712956548537,-500.0,0.00046849,31]
[322340617,1712956548562,-500.0,0.00046849,31]
[322340618,1712956548585,-500.0,0.00046849,31]
[322340619,1712956548609,-1017.18,0.00046849,31]
[322340620,1712956548633,-500.0,0.00046849,31]
[322340621,1712956548659,-1495.51,0.00046849,31]
[322340622,1712956548682,-500.0,0.00046849,31]
[322340623,1712956548706,-517.016294,0.00046849,31]
[322340624,1712956548733,-500.0,0.00046849,31]
[322340625,1712956548758,-500.0,0.00046849,31]
[322340626,1712956548783,-987.63,0.00046849,31]
[322340627,1712956548808,-2186.21,0.00046849,31]
[322340628,1712956548832,-500.0,0.00046849,31]
[322340629,1712956548857,-500.0,0.00046849,31]
[322340630,1712956548881,-500.0,0.00046849,31]
[322340631,1712956548904,-500.0,0.00046849,31]
[322340632,1712956548928,-500.0,0.00046849,31]
[322340633,1712956548951,-500.0,0.00046849,31]
[322340634,1712956548975,-500.0,0.00046849,31]
[322340635,1712956549000,-1423.81,0.00046849,31]
[322340636,1712956549024,-500.0,0.00046849,31]
[322340637,1712956549051,-427.17584641,0.00046849,31]
[322340638,1712956549076,-511.95,0.00046849,31]
[322340639,1712956549278,-500.0,0.00046849,31]
[322340640,1712956549303,-500.0,0.00046849,31]
[322340641,1712956549327,-533.47,0.00046849,31]
[322340642,1712956549353,-1543.83,0.00046849,31]
[322340643,1712956549378,-16891.89,0.00046849,31]
[322340644,1712956549404,-500.0,0.00046849,31]
[322340645,1712956549430,-500.0,0.00046849,31]
[322340646,1712956549456,-1727.76,0.00046849,31]
[322340647,1712956549480,-500.0,0.00046849,31]
[322340648,1712956549507,-500.0,0.00046849,31]
[322340649,1712956549532,-500.0,0.00046849,31]
[322340650,1712956549556,-500.0,0.00046849,31]
[322340651,1712956549580,-500.0,0.00046849,31]
[322340652,1712956549604,-500.0,0.00046849,31]
[322340653,1712956549628,-1334.55,0.00046849,31]
[322340654,1712956549653,-500.0,0.00046849,31]
[322340655,1712956549678,-3445.8,0.00046849,31]
[322340656,1712956549704,-3743.4,0.00046849,31]
[322340657,1712956549729,-500.0,0.00046849,31]
[322340658,1712956549754,-500.0,0.00046849,31]
[322340659,1712956549778,-500.0,0.00046849,31]
[322340660,1712956549808,-500.0,0.00046849,31]
[322340661,1712956549833,-500.0,0.00046849,31]
[322340662,1712956549858,-500.0,0.00046849,31]
[322340663,1712956549884,-650.65,0.00046849,31]
[322340664,1712956549908,-500.0,0.00046849,31]
[322340665,1712956549931,-500.0,0.00046849,31]
[322340666,1712956549955,-500.0,0.00046849,31]
[322340667,1712956549979,-500.0,0.00046849,31]
[322340668,1712956550004,-152.3820507,0.00046889,30]
[322340669,1712956550029,-152.84604098,0.000469,32]
[322340670,1712956550057,-172.04483457,0.00046986,60]
[322340671,1712956550082,-7414.75303404,0.00047,120]
[322340672,1712956550110,-1890.2204,0.00047023,120]
[322340673,1712956550137,-500.0,0.00047123,31]
[322340674,1712956550161,-500.0,0.00047123,31]
[322340675,1712956550187,-500.0,0.00047123,31]
[322340676,1712956550214,-500.0,0.00047123,31]
[322340677,1712956550237,-500.0,0.00047123,31]
[322340678,1712956550261,-500.0,0.00047123,31]
[322340679,1712956550287,-500.0,0.00047123,31]
[322340680,1712956550310,-500.0,0.00047123,31]
[322340681,1712956550334,-500.0,0.00047123,31]
[322340682,1712956550358,-500.0,0.00047123,31]
[322340683,1712956550383,-500.0,0.00047123,31]
[322340684,1712956550409,-500.0,0.00047123,31]
[322340685,1712956550436,-500.0,0.00047123,31]
[322340686,1712956550459,-1511.53,0.00047123,31]
[322340687,1712956550484,-500.0,0.00047123,31]
[322340688,1712956550508,-500.0,0.00047123,31]
[322340689,1712956550530,-342.5775963,0.00047123,31]
[322340690,1712956550557,-2105.21,0.00047123,31]
[322340691,1712956550580,-500.0,0.00047123,31]
[322340692,1712956550605,-500.0,0.00047123,31]
[322340693,1712956550632,-500.0,0.00047123,31]
[322340694,1712956550656,-533.57,0.00047123,31]
[322340695,1712956550681,-500.0,0.00047123,31]
[322340696,1712956550705,-216.74,0.00047123,31]
[322340697,1712956550732,-500.0,0.00047123,31]
[322340698,1712956550759,-1575.29,0.00047123,31]
[322340699,1712956550785,-3096.99,0.00047123,31]
[322340700,1712956550810,-513.22,0.00047123,31]
[322340701,1712956550834,-500.0,0.00047123,31]
[322340702,1712956550857,-500.0,0.00047123,31]
[322340703,1712956550881,-500.0,0.00047123,31]
[322340704,1712956550906,-500.0,0.00047123,31]
[322340705,1712956550929,-500.0,0.00047123,31]
[322340706,1712956550953,-500.0,0.00047123,31]
[322340707,1712956550977,-632.18,0.00047123,31]
[322340708,1712956551000,-895.36,0.00047123,31]
[322340709,1712956551024,-393.71,0.00047123,31]
[322340710,1712956551049,-500.0,0.00047123,31]
[322340711,1712956551074,-941.44,0.00047123,31]
[322340712,1712956551098,-365.21,0.00047123,31]
[322340713,1712956551122,-500.0,0.00047123,31]
[322340714,1712956551146,-500.0,0.00047123,31]
[322340715,1712956551170,-1111.5,0.00047123,31]
[322340716,1712956551194,-774.82,0.00047123,31]
[322340717,1712956551218,-8132.3,0.00047123,31]
[322340718,1712956551241,-481.43,0.00047123,31]
[322340719,1712956551266,-500.0,0.00047123,31]
[322340720,1712956551292,-500.0,0.00047123,31]
[322340721,1712956551316,-266.22,0.00047123,31]
[322340722,1712956551341,-750.39,0.00047123,31]
[322340723,1712956551365,-254.87,0.00047123,31]
[322340724,1712956551391,-500.0,0.00047123,31]
[322340725,1712956551417,-500.0,0.00047123,31]
[322340726,1712956551441,-1572.03,0.00047123,31]
[322340727,1712956551467,-500.0,0.00047123,31]
[322340728,1712956551492,-3312.21,0.00047123,31]
[322340729,1712956551518,-500.0,0.00047123,31]
[322340730,1712956551546,-500.0,0.00047123,31]
[322340731,1712956551570,-486.92,0.00047123,31]
[322340732,1712956551595,-500.0,0.00047123,31]
[322340733,1712956551619,-971.73,0.00047123,31]
[322340734,1712956551643,-1402.91,0.00047123,31]
[322340735,1712956551666,-533.79,0.00047123,31]
[322340736,1712956551690,-500.0,0.00047123,31]
[322340737,1712956551714,-500.0,0.00047123,31]
[322340738,1712956551737,-467.09,0.00047123,31]
[322340739,1712956551762,-500.0,0.00047123,31]
[322340740,1712956551787,-500.0,0.00047123,31]
[322340741,1712956551810,-500.0,0.00047123,31]
[322340742,1712956551834,-500.0,0.00047123,31]
[322340743,1712956552002,-770.12,0.00047123,31]
[322340744,1712956552026,-546.83,0.00047123,31]
[322340745,1712956552051,-340.44,0.00047123,31]
[322340746,1712956552074,-165.56,0.00047123,31]
[322340747,1712956552098,-500.0,0.00047123,31]
[322340748,1712956552121,-500.0,0.00047123,31]
[322340749,1712956552144,-500.0,0.00047123,31]
[322340750,1712956552170,-500.0,0.00047123,31]
[322340751,1712956552196,-500.0,0.00047123,31]
[322340752,1712956552220,-500.0,0.00047123,31]
[322340753,1712956552244,-500.0,0.00047123,31]
[322340754,1712956552267,-500.0,0.00047123,31]
[322340755,1712956552298,-6667.16,0.00047123,31]
[322340756,1712956552325,-562.65,0.00047123,31]
[322340757,1712956552351,-500.0,0.00047123,31]
[322340758,1712956552380,-592.68,0.00047123,31]
[322340759,1712956552410,-2128.49,0.00047123,31]
[322340760,1712956552443,-576.79,0.00047123,31]
[322340761,1712956552473,-2572.2,0.00047123,31]
[322340762,1712956552502,-262.22,0.00047123,31]
[322340763,1712956552536,-500.0,0.00047123,31]
[322340764,1712956552566,-500.0,0.00047123,31]
[322340765,1712956552595,-500.0,0.00047123,31]
[322340766,1712956552621,-500.0,0.00047123,31]
[322340767,1712956552648,-500.0,0.00047123,31]
[322340768,1712956552678,-150.0,0.00047123,31]
[322340769,1712956552704,-500.0,0.00047123,31]
[322340770,1712956552730,-500.0,0.00047123,31]
[322340771,1712956552754,-500.0,0.00047123,31]
[322340772,1712956552782,-789.07,0.00047123,31]
[322340773,1712956552808,-500.0,0.00047123,31]
[322340774,1712956552834,-940.58,0.00047123,31]
[322340775,1712956552859,-500.0,0.00047123,31]
[322340776,1712956552885,-604.18890561,0.00047123,31]
[322340777,1712956552910,-1810.71,0.00047123,31]
[322340778,1712956552935,-614.95,0.00047123,31]
[322340779,1712956552961,-1488.79,0.00047123,31]
[322340780,1712956552986,-500.0,0.00047123,31]
[322340781,1712956553011,-500.0,0.00047123,31]
[322340782,1712956553037,-575.07,0.00047123,31]